Workbook

Sheet TOC
A1: Topics | B1: Breif Description
A2: Formulas | B2: Start With = Sign
A3: Functions | B3: Built In Algorithms To Make Calculations Easy
A4: Formatting | B4: Format is just a Façade!
A5: Cell References | B5: We Must Know How To Use All Four Types Of Cell References
A6: Errors | B6: Remember To Use Excel Help If You Get An Error That You Don't Understand
A7: Order Of Precedence | B7: You Must Know The Order Of Operations Because Excel Knows Them
A8: Insert Columns/Rows | B8: Create Formulas So That Structural Changes Such As Inserting Rows/Columns Will Not Ruin Formulas
A9: Names and Tables | B9: Names: Use Name Box To Name Ranges That You Will Use Often. Use Ctrl + F3 To See List Of Names That You Can Edit. Tables: Ctrl + T Creates A Table, Tables Will Auto Format, Filter, Sort, Automatically Add Names, And Will Automatically Expand When You Add Data.
A10: 3-D Cell Reference in SUM function | B10: Click On Sheet, Click On Cell, Click On Last Sheet, Hit Enter.
A11: Date Math | B11: Dates Are Serial Numbers That Represent The Number Of Days Since Jan 1, 1900 (Where Jan 1, 1900 = 1)
A12: IF functions | B12: Logical Test, What To Put In The Cell If True, What To Put In The Cell If False
A13: Spreadsheet Layout | B13: Separate Formula Inputs And Outputs, Label Everything, And Blocks Of Data Must Be Surrounded By Blanks
A14: Formula Inputs | B14: Data That Can Varies Goes Into An Assumption Table
A15: Outputs | B15: Formula Outputs Should Be In A Separate Area From The Formula Inputs And Label Your Formulas
A16: Assumption Tables | B16: All Input Data Should Go In An Area Separate From The Formula Outputs And Orientate The Assumption Table In The Same Way As The Formula Output Table
A17: Auditing | B17: Be Sure To Check All Formulas ==> Use The F2 Key

Sheet Formulas
M1: Gross Pay | N1: Deduction Rate | O1: Deduction
M2: 525.25 | N2: 0.062
M4: Score1 | N4: Score2 | O4: Score3 | P4: Total
M5: 20 | N5: 22 | O5: 24
M7: Gross Pay | N7: Deduction Rate | O7: Deduction
M8: 525.25 | N8: 0.062
M10: PMT | N10: Rate | O10: Text Formula
M11: 2500.36 | N11: 0.12
M13: Years | N13: Total Months
M14: 30

Sheet Functions&Names
A1: Sales
A2: 1439
A3: 2915
A4: 1923
A5: 6497
A6: 9767
A7: 5862
A8: 5758
A9: 9949
A10: 7583
A11: 4795
A12: 2020
A13: 3986
A14: 1094
A15: 7741
A16: 2973
A17: 3696
A18: 5861
A19: 7636
A20: 5681
A21: 2323
A22: 8294
A23: 4675
A25: SUM
A26: AVERAGE
A27: COUNT
A29: Remember: Range functions allow you to insert Rows/Columns
A32: SalesRep | B32: Sales
A33: Sidorko Tatiyana | B33: 8837
A34: Sidorko Tatiyana | B34: 1726 | E34: SUM
A35: Lyashuk Nataliya | B35: 6170 | E35: MEDIAN
A36: Vlasyuk Yelena | B36: 2531 | D36: Bal Alan | E36: SUMIF
A37: Lyashuk Nataliya | B37: 8645 | E37: COUNTIF
A38: Nyambi Kiko | B38: 3077
A39: Cobiskey Howar | B39: 7366
A40: Vlasyuk Yelena | B40: 2387
A41: Nyambi Kiko | B41: 3621
A42: Nyambi Kiko | B42: 3657
A43: Vlasyuk Yelena | B43: 5852
A44: Wilson Andrena | B44: 5338
A45: Seo Hee Chan | B45: 8866
A46: Cobiskey Howar | B46: 7007
A47: Gautam Joel | B47: 4094
A48: Seo Hee Chan | B48: 1724
A49: Bal Alan | B49: 7832
A50: Bal Alan | B50: 4551
A51: Pinney Rebecca | B51: 4775
A52: Cobiskey Howar | B52: 3108
A53: Nyambi Kiko | B53: 2608
A54: Atkinson Genevieve | B54: 2741
A55: Mcreynolds Christophe | B55: 7666
A56: Duzhuk Yuliya | B56: 8094
A57: Seo Hee Chan | B57: 3687
A58: Lewand Megan | B58: 7473
A59: Pinney Rebecca | B59: 3212
A60: Atkinson Genevieve | B60: 8177
A61: Atkinson Genevieve | B61: 1843
A62: Lewand Megan | B62: 4185
A63: Bal Alan | B63: 7301
A64: Smtonchuk Igor | B64: 3780
A65: Wilson Andrena | B65: 6195
A66: Lewand Megan | B66: 9954
A67: Nyambi Kiko | B67: 3908
A68: Lyashuk Nataliya | B68: 8173
A69: Mcreynolds Christophe | B69: 4883
A70: Duzhuk Yuliya | B70: 7450
A71: Lewand Megan | B71: 3933
A72: Lyashuk Nataliya | B72: 9128
A73: Cobiskey Howar | B73: 1768
A74: Smtonchuk Igor | B74: 9719
A75: Smtonchuk Igor | B75: 4403
A76: Sidorko Tatiyana | B76: 4704
A77: Duzhuk Yuliya | B77: 9930
A78: Vlasyuk Yelena | B78: 8231
A79: Vlasyuk Yelena | B79: 5922
A80: Smtonchuk Igor | B80: 8811
A81: Duzhuk Yuliya | B81: 4237
A82: Wilson Andrena | B82: 3187
A83: Lyashuk Nataliya | B83: 6149
A84: Duzhuk Yuliya | B84: 3967
A85: Duzhuk Yuliya | B85: 6020
A86: Pinney Rebecca | B86: 6972
A87: Mcreynolds Christophe | B87: 2856
A88: Mcreynolds Christophe | B88: 3942
A89: Conway Wendy | B89: 4377
A90: Gautam Joel | B90: 6136
A91: Elliston Nonah | B91: 2588
A92: Duzhuk Yuliya | B92: 8976
A93: Smtonchuk Igor | B93: 3064
A94: Akina Michele | B94: 3239
A95: Akina Michele | B95: 8890
A96: Nyambi Kiko | B96: 2062
A97: Elliston Nonah | B97: 5248
A98: Lyashuk Nataliya | B98: 4078
A99: Bal Alan | B99: 3202
A100: Cobiskey Howar | B100: 8327
A101: Lyashuk Nataliya | B101: 8637
A102: Nesmeianova Olg | B102: 7006
A103: Wilson Andrena | B103: 5760
A104: Mcreynolds Christophe | B104: 9658
A105: Conway Wendy | B105: 5641
A106: Seo Hee Chan | B106: 4921
A107: Sidorko Tatiyana | B107: 2163
A108: Sidorko Tatiyana | B108: 1103
A109: Vlasyuk Yelena | B109: 2169
A110: Duzhuk Yuliya | B110: 6843
A111: Atkinson Genevieve | B111: 6161
A112: Elliston Nonah | B112: 7546
A113: Cobiskey Howar | B113: 6399
A114: Elliston Nonah | B114: 8744
A115: Duzhuk Yuliya | B115: 7207
A116: Cobiskey Howar | B116: 5259
A117: Pinney Rebecca | B117: 6376
A118: Conway Wendy | B118: 9101
A119: Akina Michele | B119: 2443
A120: Wilson Dana | B120: 9987
A121: Lewand Megan | B121: 5289
A122: Conway Wendy | B122: 4634
A123: Elliston Nonah | B123: 3960
A124: Pinney Rebecca | B124: 7693
A125: Wilson Dana | B125: 3308
A126: Duzhuk Yuliya | B126: 8885
A127: Nesmeianova Olg | B127: 7547
A128: Sidorko Tatiyana | B128: 4044
A129: Atkinson Genevieve | B129: 3022
A130: Cobiskey Howar | B130: 2589
A131: Elliston Nonah | B131: 2333
A132: Gautam Joel | B132: 5243
A133: Nesmeianova Olg | B133: 2392
A134: Duzhuk Yuliya | B134: 3286
A135: Nyambi Kiko | B135: 1513
A136: Conway Wendy | B136: 2308
A137: Nyambi Kiko | B137: 8886
A138: Lyashuk Nataliya | B138: 3330
A139: Atkinson Genevieve | B139: 4362
A140: Nyambi Kiko | B140: 2825
A141: Cobiskey Howar | B141: 9265
A142: Lyashuk Nataliya | B142: 3719
A143: Lyashuk Nataliya | B143: 6761
A144: Cobiskey Howar | B144: 1060
A145: Wilson Andrena | B145: 5503
A146: Sidorko Tatiyana | B146: 4698
A147: Mcreynolds Christophe | B147: 5709
A148: Mcreynolds Christophe | B148: 8122
A149: Pinney Rebecca | B149: 2975
A150: Nyambi Kiko | B150: 8698
A151: Pinney Rebecca | B151: 1439
A152: Atkinson Genevieve | B152: 2915
A153: Nyambi Kiko | B153: 1923
A154: Mcreynolds Christophe | B154: 6497
A155: Vlasyuk Yelena | B155: 9767
A156: Gautam Joel | B156: 5862
A157: Bal Alan | B157: 5758
A158: Nesmeianova Olg | B158: 9949
A159: Mcreynolds Christophe | B159: 7583
A160: Lewand Megan | B160: 4795
A161: Bal Alan | B161: 2020
A162: Nesmeianova Olg | B162: 3986
A163: Wilson Andrena | B163: 1094
A164: Sidorko Tatiyana | B164: 7741
A165: Wilson Dana | B165: 2973
A166: Wilson Andrena | B166: 3696
A167: Bal Alan | B167: 5861
A168: Wilson Dana | B168: 7636
A169: Cobiskey Howar | B169: 5681
A170: Akina Michele | B170: 2323
A171: Wilson Andrena | B171: 8294
A172: Duzhuk Yuliya | B172: 4675
A173: Pinney Rebecca | B173: 4170
A174: Gautam Joel | B174: 6243
A175: Gautam Joel | B175: 5092
A176: Pinney Rebecca | B176: 6917
A177: Wilson Dana | B177: 9727
A178: Gautam Joel | B178: 4489
A179: Conway Wendy | B179: 8203
A180: Conway Wendy | B180: 1210
A181: Conway Wendy | B181: 4919
A182: Pinney Rebecca | B182: 1155
A183: Elliston Nonah | B183: 4884
A184: Smtonchuk Igor | B184: 1589
A185: Cobiskey Howar | B185: 5528
A186: Seo Hee Chan | B186: 1400
A187: Wilson Dana | B187: 5662
A188: Cobiskey Howar | B188: 6055
A189: Bal Alan | B189: 2591
A190: Atkinson Genevieve | B190: 1851
A191: Duzhuk Yuliya | B191: 9345
A192: Vlasyuk Yelena | B192: 5334
A193: Duzhuk Yuliya | B193: 4541
A194: Wilson Dana | B194: 9168
A195: Conway Wendy | B195: 5284
A196: Conway Wendy | B196: 7005
A197: Vlasyuk Yelena | B197: 9745
A198: Cobiskey Howar | B198: 1275
A199: Gautam Joel | B199: 9047
A200: Nesmeianova Olg | B200: 3957
A201: Seo Hee Chan | B201: 5871
A202: Mcreynolds Christophe | B202: 8594
A203: Sidorko Tatiyana | B203: 8549
A204: Nyambi Kiko | B204: 5394
... 167 more rows

Sheet Formatting as Facade
A1: Formatting is like a façade on a house: it is only what is on top. Formatting does not necessarily reflect the underlying number
A2: General | B2: Number | C2: Currency | D2: Accounting | E2: Date | F2: Time | G2: Percentage | H2: Fraction
A3: No commas, shows as many decimals as you type in | B3: Shows commas and as many decimals as you tell it to show | C3: Shows "floating" dollar sign, commas and as many decimals as you tell it to show | D3: Shows "fixed" dollar sign, commas and as many decimals as you tell it to show | E3: Shows date format, underneath is the number of days since Jan. 1, 1900 | F3: Shows time format, underneath is the proportion of one 24 hour day | G3: Shows Percentage format (slides decimal to right two positions and then adds the percentage symbol). What is underneath is a decimal or whole number (.06 or 1 )) | H3: Division represented with a numerator and a denominator and a line between the two
A4: 12569.45698 | B4: 12569.45698 | C4: 12569.45698 | D4: 12569.45698 | E4: 2006-07-03 | F4: 08:00:00 | G4: 0.06 | H4: 0.25
A5: 12569.45698 | B5: 12569.45698 | C5: 12569.45698 | D5: 12569.45698 | E5: 38901 | F5: 0.3333333333 | G5: 0.06 | H5: 0.25
A6: 12569.45698 | B6: 12569.45698 | C6: 12569.45698 | D6: 12569.45698 | E6: 38901 | F6: 0.3333333333 | G6: 0.06 | H6: 0.25
J7: Excel uses the precise values in calculations, not the displayed values
J8: 12569.45698 | K8: 12569
J9: 12569.45698 | K9: 12569
I10: Total | J10: =SUM(J8:J9) -> 25138.91396 | K10: =SUM(K8:K9) -> 25138
I13: Note about %: Pre-formatting a cell with %, allows either 10 or .1 to be entered, and the precise value that will be stored is .10. But entering 10 or .1 in a cell and then formatting with % will store the two different precise values.
H14: 10 typed in ==> | I14: 0.1 | K14: 10
H15: .1 typed in ==> | I15: 0.1 | K15: 0.1

Sheet Cell References
A1: =ROW()&")" -> 1) | B1: There are 4 types of cell references: Relative, Absolute (or "locked"), Mixed with Column "locked", Mixed with Row "locked"
A2: 2) | B2: Relative Cell Reference means that if the formula is looking at a cell reference that is three cells to the left, when you copy the formula to any other cell, the cell reference will still be looking three cells to the left.
A3: 3) | B3: “Absolute” means that if the formula is looking at a particular cell reference, when you copy the formula to any other cell, the cell reference will still be looking at that particular cell reference. If the Absolute Cell reference is $A$1, the formula will always look at cell A1. It is as if the formula is locked on the cell A1 throughout copy action
A4: 4) | B4: Mixed with Row "locked" means that cell refence remains absolute or locked when copying across rows and remains relative when copying across columns. “Locks cell reference when copying it vertically, but not horizontally”
A5: 5) | B5: Mixed with Column "locked" means that cell refence remains absolute or locked when copying across columns and remains relative when copying across rows. “Locks cell reference when copying it horizontally, but not vertically”
A6: 6) | B6: When using cell references in formulas that you will copy to other cells, ask 2 questions of each cell reference to determine which of the 4 types of cell references to use
B8: =B25 -> 1 | C8: =B8+$B26 -> 2 | D8: 3 | E8: 4 | F8: 5 | G8: 6 | H8: 7 | I8: 8 | J8: 9 | K8: 10 | L8: 11 | M8: 12 | N8: 13 | P8: Years/Rate | Q8: =Q25 -> 15 | R8: =Q8+$Q26 -> 20 | S8: =R8+$Q26 -> 25 | T8: =S8+$Q26 -> 30 | U8: =T8+$Q26 -> 35
A9: =B8 -> 1 | P9: =Q27 -> 0.05
A10: =A9+B$26 -> 2 | P10: =P9+Q$28 -> 0.06
A11: =A10+B$26 -> 3 | P11: =P10+Q$28 -> 0.07
A12: 4 | P12: 0.08
A13: 5 | P13: 0.09
A14: 6 | P14: 0.1
A15: 7 | P15: 0.11
A16: 8 | P16: 0.12
A17: 9 | P17: 0.13
A18: 10 | P18: 0.14
A19: =A18+B$26 -> 11 | P19: 0.15
A20: 12 | P20: 0.16
P22: PMT | Q22: -5000
A24: Assumptions | P24: Assumptions
A25: Start # | B25: 1 | P25: Start # | Q25: 15
A26: Increment | B26: 1 | P26: Increment | Q26: 5
P27: Start # | Q27: 0.05
P28: Increment | Q28: 0.01

Sheet Totals
A1: Three Month Totals
B2: Dept 1 | C2: Dept 2 | D2: Dept 3 | E2: Dept 4 | F2: Dept 5 | G2: Dept 6 | H2: Totals
A3: Product 1 | H3: =SUM(B3:G3) -> 0
A4: Product 2 | H4: 0
A5: Product 3 | H5: 0
A6: Product 4 | H6: 0
A7: Product 5 | H7: 0
A8: Product 6 | H8: 0
A9: Product 7 | H9: 0
A10: Product 8 | H10: 0
A11: Product 9 | H11: 0
A12: Product 10 | H12: 0
A13: Product 11 | H13: 0
A14: Product 12 | H14: 0
A15: Product 13 | H15: 0
A16: Product 14 | H16: 0
A17: Totals | B17: =SUM(B3:B16) -> 0 | C17: 0 | D17: 0 | E17: 0 | F17: 0 | G17: 0 | H17: 0

Sheet Jan
A1: Jan
B2: Dept 1 | C2: Dept 2 | D2: Dept 3 | E2: Dept 4 | F2: Dept 5 | G2: Dept 6 | H2: Totals
A3: Product 1 | B3: =IF(AND(ISEVEN(ROW()),ISODD(COLUMN())),RANDBETWEEN(100,500),RANDBETWEEN(50,300)) -> 291 | C3: =IF(AND(ISEVEN(ROW()),ISODD(COLUMN())),RANDBETWEEN(100,500),RANDBETWEEN(50,300)) -> 175 | D3: 282 | E3: 188 | F3: 249 | G3: 216 | H3: =SUM(B3:G3) -> 1401
A4: Product 2 | B4: 93 | C4: 201 | D4: 121 | E4: 398 | F4: 211 | G4: 291 | H4: 1315
A5: Product 3 | B5: 277 | C5: 185 | D5: 80 | E5: 227 | F5: 75 | G5: 249 | H5: 1093
A6: Product 4 | B6: 81 | C6: 377 | D6: 272 | E6: 252 | F6: 212 | G6: 473 | H6: 1667
A7: Product 5 | B7: 161 | C7: 110 | D7: 78 | E7: 130 | F7: 219 | G7: 85 | H7: 783
A8: Product 6 | B8: 168 | C8: 309 | D8: 96 | E8: 430 | F8: 86 | G8: 159 | H8: 1248
A9: Product 7 | B9: 207 | C9: 230 | D9: 187 | E9: 93 | F9: 146 | G9: 297 | H9: 1160
A10: Product 8 | B10: 287 | C10: 478 | D10: 212 | E10: 165 | F10: 233 | G10: 420 | H10: 1795
A11: Product 9 | B11: 243 | C11: 50 | D11: 111 | E11: 162 | F11: 104 | G11: 151 | H11: 821
A12: Product 10 | B12: 283 | C12: 398 | D12: 205 | E12: 135 | F12: 180 | G12: 104 | H12: 1305
A13: Product 11 | B13: 80 | C13: 145 | D13: 86 | E13: 67 | F13: 244 | G13: 159 | H13: 781
A14: Product 12 | B14: 299 | C14: 411 | D14: 290 | E14: 165 | F14: 151 | G14: 192 | H14: 1508
A15: Product 13 | B15: 285 | C15: 191 | D15: 105 | E15: 212 | F15: 67 | G15: 55 | H15: 915
A16: Product 14 | B16: 157 | C16: 497 | D16: 119 | E16: 402 | F16: 153 | G16: 154 | H16: 1482
A17: Totals | B17: =SUM(B3:B16) -> 2912 | C17: 3757 | D17: 2244 | E17: 3026 | F17: 2330 | G17: 3005 | H17: 17274

Sheet Feb
A1: Feb
B2: Dept 1 | C2: Dept 2 | D2: Dept 3 | E2: Dept 4 | F2: Dept 5 | G2: Dept 6 | H2: Totals
A3: Product 1 | B3: =IF(AND(ISEVEN(ROW()),ISODD(COLUMN())),RANDBETWEEN(100,500),RANDBETWEEN(50,300)) -> 181 | C3: =IF(EVEN(ROW()),RANDBETWEEN(100,500),RANDBETWEEN(50,300)) -> 149 | D3: 425 | E3: 462 | F3: 471 | G3: 425 | H3: =SUM(B3:G3) -> 2113
A4: Product 2 | B4: 499 | C4: 208 | D4: 142 | E4: 256 | F4: 127 | G4: 405 | H4: 1637
A5: Product 3 | B5: 263 | C5: 443 | D5: 309 | E5: 284 | F5: 277 | G5: 282 | H5: 1858
A6: Product 4 | B6: 139 | C6: 248 | D6: 122 | E6: 251 | F6: 447 | G6: 162 | H6: 1369
A7: Product 5 | B7: 369 | C7: 387 | D7: 280 | E7: 243 | F7: 298 | G7: 316 | H7: 1893
A8: Product 6 | B8: 183 | C8: 323 | D8: 128 | E8: 193 | F8: 269 | G8: 161 | H8: 1257
A9: Product 7 | B9: 316 | C9: 169 | D9: 341 | E9: 254 | F9: 317 | G9: 196 | H9: 1593
A10: Product 8 | B10: 200 | C10: 195 | D10: 193 | E10: 484 | F10: 172 | G10: 136 | H10: 1380
A11: Product 9 | B11: 248 | C11: 171 | D11: 124 | E11: 256 | F11: 103 | G11: 335 | H11: 1237
A12: Product 10 | B12: 126 | C12: 410 | D12: 469 | E12: 243 | F12: 154 | G12: 467 | H12: 1869
A13: Product 11 | B13: 290 | C13: 475 | D13: 498 | E13: 225 | F13: 429 | G13: 239 | H13: 2156
A14: Product 12 | B14: 303 | C14: 115 | D14: 262 | E14: 244 | F14: 484 | G14: 447 | H14: 1855
A15: Product 13 | B15: 434 | C15: 101 | D15: 296 | E15: 355 | F15: 308 | G15: 366 | H15: 1860
A16: Product 14 | B16: 280 | C16: 375 | D16: 390 | E16: 352 | F16: 427 | G16: 242 | H16: 2066
A17: Totals | B17: =SUM(B3:B16) -> 3831 | C17: 3769 | D17: 3979 | E17: 4102 | F17: 4283 | G17: 4179 | H17: 24143

Sheet Mar
A1: Mar
B2: Dept 1 | C2: Dept 2 | D2: Dept 3 | E2: Dept 4 | F2: Dept 5 | G2: Dept 6 | H2: Totals
A3: Product 1 | B3: =IF(AND(ISEVEN(ROW()),ISODD(COLUMN())),RANDBETWEEN(100,500),RANDBETWEEN(50,300)) -> 179 | C3: =IF(AND(ISEVEN(ROW()),ISODD(COLUMN())),RANDBETWEEN(100,500),RANDBETWEEN(50,300)) -> 164 | D3: 191 | E3: 141 | F3: 128 | G3: 77 | H3: =SUM(B3:G3) -> 880
A4: Product 2 | B4: 261 | C4: 203 | D4: 76 | E4: 282 | F4: 235 | G4: 236 | H4: 1293
A5: Product 3 | B5: 218 | C5: 148 | D5: 238 | E5: 275 | F5: 292 | G5: 90 | H5: 1261
A6: Product 4 | B6: 279 | C6: 114 | D6: 289 | E6: 384 | F6: 74 | G6: 389 | H6: 1529
A7: Product 5 | B7: 95 | C7: 140 | D7: 168 | E7: 142 | F7: 227 | G7: 176 | H7: 948
A8: Product 6 | B8: 249 | C8: 411 | D8: 238 | E8: 328 | F8: 291 | G8: 185 | H8: 1702
A9: Product 7 | B9: 204 | C9: 199 | D9: 51 | E9: 149 | F9: 112 | G9: 68 | H9: 783
A10: Product 8 | B10: 166 | C10: 323 | D10: 178 | E10: 215 | F10: 146 | G10: 157 | H10: 1185
A11: Product 9 | B11: 189 | C11: 118 | D11: 99 | E11: 258 | F11: 108 | G11: 286 | H11: 1058
A12: Product 10 | B12: 66 | C12: 212 | D12: 128 | E12: 482 | F12: 108 | G12: 355 | H12: 1351
A13: Product 11 | B13: 81 | C13: 85 | D13: 120 | E13: 55 | F13: 194 | G13: 204 | H13: 739
A14: Product 12 | B14: 134 | C14: 289 | D14: 194 | E14: 133 | F14: 264 | G14: 376 | H14: 1390
A15: Product 13 | B15: 91 | C15: 138 | D15: 178 | E15: 86 | F15: 120 | G15: 167 | H15: 780
A16: Product 14 | B16: 127 | C16: 118 | D16: 150 | E16: 136 | F16: 68 | G16: 138 | H16: 737
A17: Totals | B17: =SUM(B3:B16) -> 2339 | C17: 2662 | D17: 2298 | E17: 3066 | F17: 2367 | G17: 2904 | H17: 15636

Sheet ERRORS
A1: Error Message | B1: Description of Error | C1: Example | D1: Example | F1: VLOOKUP TABLE | I1: Bond Inputs
A2: ####### | B2: Column width not wide enough to display data (values), or negative date or time | C2: The column that is narrower than the number it contains | D2: 101010101010 | F2: 1 | G2: Red | I2: Face Vaule | J2: 400000
B3: Text that is not a "name" is being used in a formula | C3: A formula like "=red" where red is not an Excel name | D3: =red ->  | F3: 2 | G3: Blue | I3: Coupon Rate | J3: 0.05
B4: Not Available/ No Answer | C4: VLOOKUP function can not find an answer | D4: =VLOOKUP(E4,$F$2:$G$3,2) ->  | I4: years | J4: 20
B5: Formula is using cell reference that has been deleted, or other invalid cell reference | C5: Formula said "=A1" then cell A1 was deleted. | D5: =#REF! ->  | I5: periods/year | J5: 4
B6: Invalid operand or argument type (argument in a function) | C6: The formula "=F1:G2" confused Excel because it does not know what to do with the ":" (unless it was an array function). | D6: =F2:G3 ->  | E6: =F3+G3 ->  | I6: Annual Discount Rate | J6: 0.06525
B7: Invalid numeric values in a formula or function, or an iterative function like IRR cannot find an answer, or the number is too big or small (number must be between -1*10^307 and 1*10^307) | C7: Formula entered was: "=1*10^500" | D7: =1*10^500 ->  | I7: Interest Payments | J7: =J3/J5*J2 -> 5000
B8: Divide by zero | C8: Dividing by zero is not defined because 4*? = 0 | D8: =J7/E8 -> 
A9: Circular Cell Reference | B9: Cell reference in formula refers to the formulas result (itself) | C9: In cell D9 you type the formula: "=J7+D9" | D9: =J7+D9

Sheet Order of Precedence
A1: Arithmetic operation signs in Excel:
A2: ( ) represents Parentheses
A3: ^ represents Exponents (powers and roots)
A4: * represents Multiplication
A5: / represents Division
A6: + represents Addition
A7: – represents Subtraction
A9: Order of Operations form Algebra class (Each one is left to right):
A10: Please è Parenthesis è ( )
A11: Excuse è Exponents è ^ è 2^2 = 4 or 4^(1/2) = 2
A12: My Dear è Multiplication è * and Division è /
A13: Aunt Sally è Adding (SUM) è + and Subtraction è -
A15: Excel's Order of Operations:
A16: Parenthesis ( ) | F16: Dept01 | G16: Dept02 | H16: Dept03 | I16: Dept04 | J16: Dept05 | K16: Dept06
A17: Ranges use of colon symbol ":" | E17: Product01 | F17: 500 | G17: 114 | H17: 337 | I17: 380 | J17: 288 | K17: 170
A18: Example: =SUM(A1:A4) | C18: =SUM(F17:K17) -> 1789 | E18: Product02 | F18: 120 | G18: 263 | H18: 261 | I18: 401 | J18: 401 | K18: 453
A19: Evaluate intersections (spaces (labels)) | E19: Product03 | F19: 167 | G19: 345 | H19: 359 | I19: 447 | J19: 222 | K19: 288
A20: (If you ever use labels or names for natural language formulas, or two ranges separated by a space) | C20: =F19:K19 I17:I30 -> 447 | E20: Product04 | F20: 356 | G20: 202 | H20: 453 | I20: 300 | J20: 446 | K20: 175
A21: Evaluate unions (,) | E21: Product05 | F21: 472 | G21: 122 | H21: 327 | I21: 201 | J21: 398 | K21: 318
A22: Example: =SUM(A1:A4,B2:C7) | C22: =SUM(F17:F30,H17:H30) -> 8745 | E22: Product06 | F22: 460 | G22: 369 | H22: 419 | I22: 295 | J22: 123 | K22: 214
A23: Negation (-) | E23: Product07 | F23: 334 | G23: 495 | H23: 246 | I23: 369 | J23: 348 | K23: 284
A24: Example: =-2^4 è 16 | C24: =-2^4 -> 16 | E24: Product08 | F24: 443 | G24: 108 | H24: 140 | I24: 336 | J24: 426 | K24: 110
A25: Example: =-(2^4) è -16 | C25: =-(2^4) -> -16 | E25: Product09 | F25: 474 | G25: 470 | H25: 183 | I25: 453 | J25: 119 | K25: 190
A26: Converts % (1% è .01) | C26: =100*1% -> 1 | E26: Product10 | F26: 161 | G26: 133 | H26: 245 | I26: 238 | J26: 166 | K26: 441
A27: Exponents (^) | E27: Product11 | F27: 389 | G27: 369 | H27: 327 | I27: 247 | J27: 482 | K27: 321
A28: Example 1: 4^(1/2) = 2 | E28: Product12 | F28: 114 | G28: 148 | H28: 139 | I28: 311 | J28: 389 | K28: 169
A29: Example: 3^2 = 9 | E29: Product13 | F29: 476 | G29: 445 | H29: 370 | I29: 423 | J29: 205 | K29: 263
A30: Multiplication (*) and division (/), left to right | E30: Product14 | F30: 178 | G30: 165 | H30: 295 | I30: 148 | J30: 479 | K30: 167
A31: Adding (+) and division (-), left to right
A32: Text operators (& è Concatenation) | C32: =2&3*3 -> 29
A33: Comparative symbols: =, <>, >=, <=, <, > | C33: =2*3>16^(1/4) -> TRUE
A34: If anything is still left, then left to right

Sheet Date Math
A1: Invoice Due Date | B1: 2008-01-20
A2: Today | B2: =TODAY() -> 2008-03-19
A3: Days Over Due
A5: Loan Issue Date | B5: 2008-03-12
A6: Term of Loan | B6: 90
A7: Maturity Date

Sheet IF
A1: IF function: Logical Test that evaluates to TRUE or FALSE, What to put in cell if TRUE, What to put in cell if FALSE
A3: TRUE / FALSE examples:
A4: Revenue: | B4: 5000 | D4: Does DR = CR? | E4: DR | F4: CR
A5: Hurdle to get bonus: | B5: 4000 | E5: 500 | F5: 499.99
A6: Is Revenue greater than Hurdle?
D7: Credit Score | E7: 2
A8: Text | B8: Excel is fun! | D8: Credit Score Hurdle | E8: 3
A9: ISTEXT | D9: Asset Value | E9: 125000
D10: Asset Value Hurdle | E10: 100000
A11: Blank Cell | D11: Are Both Hurdles met? AND
A12: Is the cell blank? | D12: Is At Least 1 Hurdle met? OR
A14: IF function examples:
A15: Put 1 of 2 numbers in the cell | D15: Put a blank or a formula in the cell
A16: Revenue | B16: 5000 | D16: Date | E16: Withdraw | F16: Deposit | G16: Balance
A17: Bonus Hurcle | B17: 6000 | D17: Bal For | G17: 500
A18: Bonus Amount | B18: 500 | D18: 2008-03-12 | E18: 20
A19: Bonus Expense | D19: 2008-03-13 | F19: 50
D20: 2008-03-14 | E20: 200
A21: Put 1 of 2 Text strings in the cell | G21: =IF(D21="","",G20+F21-E21) -> 
A22: Revenue | B22: 5000
A23: Expense | B23: 2000 | D23: Put a 1 of 2 ranges in a function
B24: =B22-B23 -> 3000 | D24: Department | E24: Jan Rev. | F24: Feb Rev. | G24: Mar Rev.
D25: Dept01 | E25: 16 | F25: 15 | G25: 29
A26: Put a 1 of 2 formulas in the cell | D26: Dept02 | E26: 39 | F26: 21 | G26: 44
A27: Revenue | B27: 5000 | D27: SUM of Rev. by Department | E27: Type Dept:
A28: Expense | B28: 6000 | E28: Dept01
D30: IF that uses AND function as Logical Test
D31: Credit Score | E31: 2
D32: Credit Score Hurdle | E32: 3
D33: Asset Value | E33: 125000
D34: Asset Value Hurdle | E34: 100000
D35: IF Both hurdles are met we will extend credit:
D37: IF that uses OR function as Logical Test
D38: Credit Score | E38: 2
D39: Credit Score Hurdle | E39: 3
D40: Asset Value | E40: 125000
D41: Asset Value Hurdle | E41: 100000
D42: IF Both hurdles are met we will extend credit:

Sheet IF (an)
A1: IF function: Logical Test that evaluates to TRUE or FALSE, What to put in cell if TRUE, What to put in cell if FALSE
A3: TRUE / FALSE examples:
A4: Revenue: | B4: 5000 | D4: Does DR = CR? | E4: DR | F4: CR
A5: Hurdle to get bonus: | B5: 4000 | D5: =E5=F5 -> FALSE | E5: 500 | F5: 499.99
A6: Is Revenue greater than Hurdle? | B6: =B4>=B5 -> TRUE
D7: Credit Score | E7: 2
A8: Text | B8: Excel is fun! | D8: Credit Score Hurdle | E8: 3
A9: ISTEXT | B9: =ISTEXT(B8) -> TRUE | D9: Asset Value | E9: 125000
D10: Asset Value Hurdle | E10: 100000
A11: Blank Cell | D11: Are Both Hurdles met? AND | E11: =AND(E7>=E8,E9>=E10) -> FALSE
A12: Is the cell blank? | B12: =B11="" -> TRUE | D12: Is At Least 1 Hurdle met? OR | E12: =OR(E7>=E8,E9>=E10) -> TRUE
A14: IF function examples:
A15: Put 1 of 2 numbers in the cell | D15: Put a blank or a formula in the cell
A16: Revenue | B16: 5000 | D16: Date | E16: Withdraw | F16: Deposit | G16: Balance
A17: Bonus Hurcle | B17: 6000 | D17: Bal For | G17: 500
A18: Bonus Amount | B18: 500 | D18: 2008-03-12 | E18: 20 | G18: =IF(D18="","",G17+F18-E18) -> 480
A19: Bonus Expense | B19: =IF(B16>=B17,B18,0) -> 0 | D19: 2008-03-13 | F19: 50 | G19: =IF(D19="","",G18+F19-E19) -> 530
D20: 2008-03-14 | E20: 200 | G20: 330
A21: Put 1 of 2 Text strings in the cell
A22: Revenue | B22: 5000
A23: Expense | B23: 2000 | D23: Put a 1 of 2 ranges in a function
A24: =IF(B22>=B23,"Net Income","Net Loss") -> Net Income | B24: =B22-B23 -> 3000 | D24: Department | E24: Jan Rev. | F24: Feb Rev. | G24: Mar Rev.
D25: Dept01 | E25: 16 | F25: 15 | G25: 29
A26: Put a 1 of 2 formulas in the cell | D26: Dept02 | E26: 39 | F26: 21 | G26: 44
A27: Revenue | B27: 5000 | D27: SUM of Rev. by Department | E27: Type Dept:
A28: Expense | B28: 6000 | D28: =SUM(IF(E28="Dept01",E25:G25,E26:G26)) -> 60 | E28: Dept01
A29: =IF(B27>=B28,"Net Income","Net Loss") -> Net Loss | B29: =IF(B27>=B28,B27-B28,B28-B27) -> 1000
D30: IF that uses AND function as Logical Test
D31: Credit Score | E31: 2
D32: Credit Score Hurdle | E32: 3
D33: Asset Value | E33: 125000
D34: Asset Value Hurdle | E34: 100000
D35: IF Both hurdles are met we will extend credit: | E35: =IF(AND(E31>=E32,E33>=E34),"Extend Credit","No Credit") -> No Credit
D37: IF that uses OR function as Logical Test
D38: Credit Score | E38: 2
D39: Credit Score Hurdle | E39: 3
D40: Asset Value | E40: 125000
D41: Asset Value Hurdle | E41: 100000
D42: IF Both hurdles are met we will extend credit: | E42: =IF(OR(E38>=E39,E40>=E41),"Extend Credit","No Credit") -> Extend Credit

Sheet Sales Analysis
A1: Rad Corp. | D1: Units | J1: Total Costs
A2: Income Statement
A3: June, 2008
A4: Sales
A5: Variable Costs
A6: Contribution Margin
A7: Fixed Costs
A8: Net Income
A10: Assumptions
A11: Units Sold
A12: Price per Unit
A13: VariableCost per Unit
A14: Fixed Costs
A15: Start Units Sold
A16: Increment Units Sold

Sheet Sales Analysis(an)
A1: Rad Corp. | D1: Units | E1: =TRANSPOSE(A4:A8) -> Sales | F1: Variable Costs | G1: Contribution Margin | H1: Fixed Costs | I1: Net Income | J1: Total Costs
A2: Income Statement | D2: =B15 -> 0 | E2: =D2*B$12 -> 0 | F2: =D2*B$13 -> 0 | G2: =E2-F2 -> 0 | H2: =B$14 -> 79250 | I2: =G2-H2 -> -79250 | J2: =H2+F2 -> 79250
A3: June, 2008 | D3: =D2+B$16 -> 1000 | E3: =D3*B$12 -> 30000 | F3: =D3*B$13 -> 13690 | G3: 16310 | H3: =B$14 -> 79250 | I3: -62940 | J3: =H3+F3 -> 92940
A4: Sales | B4: =B$11*B12 -> 150000 | D4: =D3+B$16 -> 2000 | E4: =D4*B$12 -> 60000 | F4: =D4*B$13 -> 27380 | G4: 32620 | H4: =B$14 -> 79250 | I4: -46630 | J4: 106630
A5: Variable Costs | B5: =B$11*B13 -> 68450 | D5: =D4+B$16 -> 3000 | E5: =D5*B$12 -> 90000 | F5: =D5*B$13 -> 41070 | G5: 48930 | H5: =B$14 -> 79250 | I5: -30320 | J5: 120320
A6: Contribution Margin | B6: =B4-B5 -> 81550 | D6: =D5+B$16 -> 4000 | E6: =D6*B$12 -> 120000 | F6: =D6*B$13 -> 54760 | G6: 65240 | H6: =B$14 -> 79250 | I6: -14010 | J6: 134010
A7: Fixed Costs | B7: =B14 -> 79250 | D7: =D6+B$16 -> 5000 | E7: =D7*B$12 -> 150000 | F7: =D7*B$13 -> 68450 | G7: 81550 | H7: =B$14 -> 79250 | I7: 2300 | J7: 147700
A8: Net Income | B8: =B6-B7 -> 2300 | D8: =D7+B$16 -> 6000 | E8: =D8*B$12 -> 180000 | F8: =D8*B$13 -> 82140 | G8: 97860 | H8: =B$14 -> 79250 | I8: 18610 | J8: 161390
D9: =D8+B$16 -> 7000 | E9: =D9*B$12 -> 210000 | F9: =D9*B$13 -> 95830 | G9: 114170 | H9: =B$14 -> 79250 | I9: 34920 | J9: 175080
A10: Assumptions | D10: =D9+B$16 -> 8000 | E10: =D10*B$12 -> 240000 | F10: =D10*B$13 -> 109520 | G10: 130480 | H10: =B$14 -> 79250 | I10: 51230 | J10: 188770
A11: Units Sold | B11: 5000 | D11: =D10+B$16 -> 9000 | E11: =D11*B$12 -> 270000 | F11: =D11*B$13 -> 123210 | G11: 146790 | H11: =B$14 -> 79250 | I11: 67540 | J11: 202460
A12: Price per Unit | B12: 30 | D12: =D11+B$16 -> 10000 | E12: =D12*B$12 -> 300000 | F12: =D12*B$13 -> 136900 | G12: 163100 | H12: =B$14 -> 79250 | I12: 83850 | J12: 216150
A13: VariableCost per Unit | B13: 13.69 | D13: =D12+B$16 -> 11000 | E13: =D13*B$12 -> 330000 | F13: =D13*B$13 -> 150590 | G13: 179410 | H13: =B$14 -> 79250 | I13: 100160 | J13: 229840
A14: Fixed Costs | B14: 79250 | D14: =D13+B$16 -> 12000 | E14: =D14*B$12 -> 360000 | F14: =D14*B$13 -> 164280 | G14: 195720 | H14: =B$14 -> 79250 | I14: 116470 | J14: 243530
A15: Start Units Sold | B15: 0 | D15: =D14+B$16 -> 13000 | E15: =D15*B$12 -> 390000 | F15: =D15*B$13 -> 177970 | G15: 212030 | H15: =B$14 -> 79250 | I15: 132780 | J15: 257220
A16: Increment Units Sold | B16: 1000 | D16: =D15+B$16 -> 14000 | E16: =D16*B$12 -> 420000 | F16: =D16*B$13 -> 191660 | G16: 228340 | H16: =B$14 -> 79250 | I16: 149090 | J16: 270910
D17: =D16+B$16 -> 15000 | E17: =D17*B$12 -> 450000 | F17: =D17*B$13 -> 205350 | G17: 244650 | H17: =B$14 -> 79250 | I17: 165400 | J17: 284600
D18: =D17+B$16 -> 16000 | E18: =D18*B$12 -> 480000 | F18: =D18*B$13 -> 219040 | G18: 260960 | H18: =B$14 -> 79250 | I18: 181710 | J18: 298290
D19: =D18+B$16 -> 17000 | E19: =D19*B$12 -> 510000 | F19: =D19*B$13 -> 232730 | G19: 277270 | H19: =B$14 -> 79250 | I19: 198020 | J19: 311980
D20: =D19+B$16 -> 18000 | E20: =D20*B$12 -> 540000 | F20: =D20*B$13 -> 246420 | G20: 293580 | H20: =B$14 -> 79250 | I20: 214330 | J20: 325670
D21: =D20+B$16 -> 19000 | E21: =D21*B$12 -> 570000 | F21: =D21*B$13 -> 260110 | G21: 309890 | H21: =B$14 -> 79250 | I21: 230640 | J21: 339360

Sheet HWSolutions==>

Sheet P34-52
A1: TZEdge Material Analysis
A3: Material Price Quotes:
A4: Component | B4: Description | C4: Quantity | D4: Unit | E4: Cost/Unit
A5: Leather | B5: Exterior leather | C5: 1 | D5: sf | E5: 19.86
A6: Internal Arch Support | B6: Molesole arch support | C6: 1000 | D6: lot | E6: 2235
A7: Sole | B7: Polymer resin - preformed | C7: 12 | D7: lot | E7: 124.45
A8: Laces | B8: Smooth leather | C8: 1 | D8: inch | E8: 0.047
A9: Trim | B9: Suede appliques - set of 3 | C9: 1 | D9: set | E9: 4.25
A10: Trim | B10: Wedge logo insert | C10: 1 | D10: each | E10: 1.57
A13: Cost Calculations per Shoe:
A14: =A4 -> Component | B14: Quantity | C14: Unit | D14: Total Cost
A15: =A5 -> Leather | B15: 1.23 | C15: sf | D15: =E5*B15 -> 24.4278
A16: =A6 -> Internal Arch Support | B16: 1 | C16: each | D16: =E6/C6*B16 -> 2.235
A17: =A9&" "&B9&" "&B10 -> Trim Suede appliques - set of 3 Wedge logo insert | B17: 2 | C17: set/each | D17: =SUM(E9:E10)*B17 -> 11.64
A18: =A8 -> Laces | B18: 31.5 | C18: inch | D18: =E8*B18 -> 1.4805
A19: =A7 -> Sole | B19: 1 | C19: each | D19: =E7/C7*B19 -> 10.37083333
A20: Materials Total | D20: =SUM(D15:D19) -> 50.15413333

Sheet P52-53
A1: TZEdge Labor Analysis
A3: Labor Input Data
A4: Description | B4: Production Rate | C4: Unit | D4: $/Hour
A5: Delivery of Boxes to Product Line | B5: 15 | C5: boxes/hr | D5: 10.15
A6: Cutting of Leather | B6: 20 | C6: shoes/hr | D6: 22.4
A7: Attachment of Appliques | B7: 30 | C7: appliques/hr | D7: 10.15
A8: Sewing of Logos to Leather | B8: 22.5 | C8: pieces/hr | D8: 12.5
A9: Assembly of Leather & Sole | B9: 10 | C9: shoes/hr | D9: 22.5
A10: Assembly of Arch Support | B10: 18.5 | C10: shoes/hr | D10: 12.5
A12: Labor Formula Output
A13: Each Shoe - Manufacturing Tasks: | B13: Quantity /Shoe | C13: Unit | D13: Total Cost
A14: =A5 -> Delivery of Boxes to Product Line | B14: 0.2 | C14: boxes/shoe | D14: =D5/B5*B14 -> 0.1353333333
A15: Cutting of Leather | B15: 1 | C15: shoe | D15: 1.12
A16: Attachment of Appliques | B16: 6 | C16: appliques/shoe | D16: 2.03
A17: Sewing of Logos to Leather | B17: 2 | D17: 1.111111111
A18: Assembly of Leather & Sole | B18: 1 | C18: shoe | D18: 2.25
A19: Assembly of Arch Support | B19: 1 | C19: shoe | D19: 0.6756756757
A20: Total Labor | D20: =SUM(D14:D19) -> 7.32212012

Sheet P54-62
A1: Material Price Quotes:
A2: Component | B2: Original Option | C2: Textured Leather | D2: High Top | E2: Average
A3: Leather | B3: 24.4278 | C3: =B19*B3 -> 48.8556 | D3: =B3*B20 -> 30.53475 | E3: =AVERAGE(B3:D3) -> 34.60605
A4: Internal Arch Support | B4: 2.235 | C4: =B4 -> 2.235 | D4: =C4 -> 2.235 | E4: 2.235
A5: Trim (applique set & logo) | B5: 11.64 | C5: 1.57 | D5: =B5 -> 11.64 | E5: 8.283333333
A6: Laces | B6: 1.4805 | C6: =B6 -> 1.4805 | D6: =B19*B6 -> 2.961 | E6: 1.974
A7: Toe Support Brace | C7: 1.27 | E7: 1.27
A8: Toe Support Pad | C8: 3.29 | E8: 3.29
A9: Back Support Cushion | C9: 5 | D9: 6.5 | E9: 5.75
A10: Sole | B10: 10.37083333 | C10: =B10 -> 10.37083333 | D10: =B10 -> 10.37083333 | E10: 10.37083333
A11: Totals | B11: =SUM(B3:B10) -> 50.15413333 | C11: =SUM(C3:C10) -> 74.07193333 | D11: =SUM(D3:D10) -> 64.24158333 | E11: 62.82255
A12: ="Count = "&COUNTA(A3:A10) -> Count = 8 | B12: ="Count = "&COUNTA(B3:B10) -> Count = 5 | C12: ="Count = "&COUNTA(C3:C10) -> Count = 8 | D12: ="Count = "&COUNTA(D3:D10) -> Count = 6
A14: ="Maximum cost of a "&$A$2 -> Maximum cost of a Component | B14: =MAX(B3:D10) -> 48.8556
A15: ="Minimum cost of a "&$A$2 -> Minimum cost of a Component | B15: =MIN(B3:D10) -> 1.27
A18: Assumptions/Inputs
A19: 200 percent | B19: 2
A20: 125 percent | B20: 1.25

Sheet P62-64
A1: TZEdge Labor Cost Comparison
A2: Manufacturing Tasks Per Shoe: | B2: Original Option | C2: =B16 -> Textured Leather | D2: High Top | E2: Min Costs | F2: Max Costs
A3: Delivery of Boxes to Production Line | B3: 0.14 | C3: =IF(B17="","",$B3*B17) -> 0.126 | D3: 0.14 | E3: =MIN($B3:$D3) -> 0.126 | F3: =MAX($B3:$D3) -> 0.14
A4: Cutting of Leather | B4: 1.12 | C4: 1.12 | D4: 1.12 | E4: 1.12 | F4: 1.12
A5: Attachment of Appliques | B5: 2.03 | D5: 2.03 | E5: 2.03 | F5: 2.03
A6: Sewing of Logos to Leather | B6: 1.11 | C6: 0.555 | D6: 1.11 | E6: 0.555 | F6: 1.11
A7: Assembly of Leather, Sole | B7: 2.25 | C7: 1.5 | D7: 2.5875 | E7: 1.5 | F7: 2.5875
A8: Assembly of Arch Support | B8: 0.68 | C8: 0.4533333333 | D8: 0.68 | E8: 0.4533333333 | F8: 0.68
A9: Leather Support Assembly | C9: 1 | D9: 0.75 | E9: 0.75 | F9: 1
A10: Total Labor | B10: =SUM(B3:B9) -> 7.33 | C10: =SUM(C3:C9) -> 4.754333333 | D10: =SUM(D3:D9) -> 8.4175 | E10: 4.754333333 | F10: 8.4175
A11: =COUNTA(A3:A9) -> 7 | B11: =COUNT(B3:B9) -> 6 | C11: =COUNT(C3:C9) -> 6 | D11: =COUNT(D3:D9) -> 7 | E11: # Tasks
A13: Average for all Costs | B13: =AVERAGE(B3:D9) -> 1.07904386
A15: Increase/Decrease Assumptions
B16: Textured Leather | C16: High Top
A17: ="Labor for "&A3 -> Labor for Delivery of Boxes to Production Line | B17: =1-E17 -> 0.9 | C17: 1 | D17: Decrease % ==> | E17: 0.1
A18: Labor for Cutting of Leather | B18: 1 | C18: 1
A19: Labor for Attachment of Appliques | C19: 1
A20: Labor for Sewing of Logos to Leather | B20: =1/2 -> 0.5 | C20: 1
A21: Labor for Assembly of Leather, Sole | B21: =2/3 -> 0.6666666667 | C21: =1+E21 -> 1.15 | D21: Increase % ==> | E21: 0.15
A22: Labor for Assembly of Arch Support | B22: =2/3 -> 0.6666666667 | C22: 1
A23: Toe Support Brace
A24: Toe Support Pad
A25: Back Support Cushion

Sheet P64-77 Qrt(1)
A1: Number of Shoes Per Pair | B1: 2 | D1: TZEdge First Quarter Budget
A2: Overhead % of Labor | B2: =0.25 -> 0.25
C4: Low Priced | D4: Medium Priced | E4: High Priced
A5: Sales Volume: | C5: 1000 | D5: 750 | E5: 350
A6: Selling Price Per Pair: | C6: 200 | D6: 225 | E6: 250
A7: Item | B7: Costs per Shoe | C7: Low Priced Total | D7: Medium Priced Total | E7: High Priced Total
A8: Revenue | C8: =C5*C6 -> 200000 | D8: =D5*D6 -> 168750 | E8: =E5*E6 -> 87500
A10: Cost of Goods Sold:
A11: Materials | B11: =50.15 -> 50.15 | C11: =$B$1*$B11*C$5 -> 100300 | D11: 75225 | E11: 35105
A12: Direct Labor | B12: 7.33 | C12: 14660 | D12: 10995 | E12: 5131
A13: Overhead | B13: =B2*B12 -> 1.8325 | C13: 3665 | D13: 2748.75 | E13: 1282.75
A14: COGS Subtotal | C14: =SUM(C11:C13) -> 118625 | D14: =SUM(D11:D13) -> 88968.75 | E14: =SUM(E11:E13) -> 41518.75
A16: Selling Expense | B16: 5 | C16: =$B$1*$B16*C$5 -> 10000 | D16: =$B$1*$B16*D$5 -> 7500 | E16: =$B$1*$B16*E$5 -> 3500
A18: Projected Earnings | C18: =C8-SUM(C14,C16) -> 71375 | D18: =D8-SUM(D14,D16) -> 72281.25 | E18: =E8-SUM(E14,E16) -> 42481.25

Sheet P64-77 Qrt(2)
A1: Number of Shoes Per Pair | B1: 2 | D1: TZEdge First Quarter Budget
A2: Overhead % of Labor | B2: =0.25 -> 0.25
C4: Low Priced | D4: Medium Priced | E4: High Priced
A5: Sales Volume: | C5: 1000 | D5: 750 | E5: 350
A6: Selling Price Per Pair: | C6: 200 | D6: 225 | E6: 250
A7: Item | B7: Costs per Shoe | C7: Low Priced Total | D7: Medium Priced Total | E7: High Priced Total
A8: Revenue | C8: =C5*C6 -> 200000 | D8: =D5*D6 -> 168750 | E8: =E5*E6 -> 87500
A10: Cost of Goods Sold:
A11: Materials | B11: =50.15 -> 50.15 | C11: =$B$1*$B11*C$5 -> 100300 | D11: 75225 | E11: 35105
A12: Direct Labor | B12: 7.33 | C12: 14660 | D12: 10995 | E12: 5131
A13: Overhead | B13: =B2*B12 -> 1.8325 | C13: 3665 | D13: 2748.75 | E13: 1282.75
A14: COGS Subtotal | C14: =SUM(C11:C13) -> 118625 | D14: =SUM(D11:D13) -> 88968.75 | E14: =SUM(E11:E13) -> 41518.75
A16: Selling Expense | B16: 5 | C16: =$B$1*$B16*C$5 -> 10000 | D16: =$B$1*$B16*D$5 -> 7500 | E16: =$B$1*$B16*E$5 -> 3500
A18: Projected Earnings | C18: =C8-SUM(C14,C16) -> 71375 | D18: =D8-SUM(D14,D16) -> 72281.25 | E18: =E8-SUM(E14,E16) -> 42481.25

Sheet P64-77 Qrt(3)
A1: Number of Shoes Per Pair | B1: 2 | D1: TZEdge First Quarter Budget
A2: Overhead % of Labor | B2: =0.25 -> 0.25
C4: Low Priced | D4: Medium Priced | E4: High Priced
A5: Sales Volume: | C5: 1000 | D5: 750 | E5: 350
A6: Selling Price Per Pair: | C6: 200 | D6: 225 | E6: 250
A7: Item | B7: Costs per Shoe | C7: Low Priced Total | D7: Medium Priced Total | E7: High Priced Total
A8: Revenue | C8: =C5*C6 -> 200000 | D8: =D5*D6 -> 168750 | E8: =E5*E6 -> 87500
A10: Cost of Goods Sold:
A11: Materials | B11: =50.15 -> 50.15 | C11: =$B$1*$B11*C$5 -> 100300 | D11: 75225 | E11: 35105
A12: Direct Labor | B12: 7.33 | C12: 14660 | D12: 10995 | E12: 5131
A13: Overhead | B13: =B2*B12 -> 1.8325 | C13: 3665 | D13: 2748.75 | E13: 1282.75
A14: COGS Subtotal | C14: =SUM(C11:C13) -> 118625 | D14: =SUM(D11:D13) -> 88968.75 | E14: =SUM(E11:E13) -> 41518.75
A16: Selling Expense | B16: 5 | C16: =$B$1*$B16*C$5 -> 10000 | D16: =$B$1*$B16*D$5 -> 7500 | E16: =$B$1*$B16*E$5 -> 3500
A18: Projected Earnings | C18: =C8-SUM(C14,C16) -> 71375 | D18: =D8-SUM(D14,D16) -> 72281.25 | E18: =E8-SUM(E14,E16) -> 42481.25

Sheet P64-77 Qrt(4)
A1: Number of Shoes Per Pair | B1: 2 | D1: TZEdge First Quarter Budget
A2: Overhead % of Labor | B2: =0.25 -> 0.25
C4: Low Priced | D4: Medium Priced | E4: High Priced
A5: Sales Volume: | C5: 3700 | D5: 2200 | E5: 980
A6: Selling Price Per Pair: | C6: 200 | D6: 225 | E6: 250
A7: Item | B7: Costs per Shoe | C7: Low Priced Total | D7: Medium Priced Total | E7: High Priced Total
A8: Revenue | C8: =C5*C6 -> 740000 | D8: =D5*D6 -> 495000 | E8: =E5*E6 -> 245000
A10: Cost of Goods Sold:
A11: Materials | B11: =50.15 -> 50.15 | C11: =$B$1*$B11*C$5 -> 371110 | D11: 220660 | E11: 98294
A12: Direct Labor | B12: 7.33 | C12: 54242 | D12: 32252 | E12: 14366.8
A13: Overhead | B13: =B2*B12 -> 1.8325 | C13: 13560.5 | D13: 8063 | E13: 3591.7
A14: COGS Subtotal | C14: =SUM(C11:C13) -> 438912.5 | D14: =SUM(D11:D13) -> 260975 | E14: =SUM(E11:E13) -> 116252.5
A16: Selling Expense | B16: 5 | C16: =$B$1*$B16*C$5 -> 37000 | D16: =$B$1*$B16*D$5 -> 22000 | E16: =$B$1*$B16*E$5 -> 9800
A18: Projected Earnings | C18: =C8-SUM(C14,C16) -> 264087.5 | D18: =D8-SUM(D14,D16) -> 212025 | E18: =E8-SUM(E14,E16) -> 118947.5

Sheet P64-77 Total
A1: Number of Shoes Per Pair | B1: 2 | D1: TZEdge First Quarter Budget
A2: Overhead % of Labor | B2: =0.25 -> 0.25
C4: Low Priced | D4: Medium Priced | E4: High Priced
A5: Sales Volume: | C5: =SUM('P64-77 Qrt(1):P64-77 Qrt(4)'!C5) -> 6700 | D5: =SUM('P64-77 Qrt(1):P64-77 Qrt(4)'!D5) -> 4450 | E5: =SUM('P64-77 Qrt(1):P64-77 Qrt(4)'!E5) -> 2030
A6: Selling Price Per Pair: | C6: 200 | D6: 225 | E6: 250
A7: Item | B7: Costs per Shoe | C7: Low Priced Total | D7: Medium Priced Total | E7: High Priced Total
A8: Revenue | C8: =C5*C6 -> 1340000 | D8: =D5*D6 -> 1001250 | E8: =E5*E6 -> 507500
A10: Cost of Goods Sold:
A11: Materials | B11: =50.15 -> 50.15 | C11: =$B$1*$B11*C$5 -> 672010 | D11: 446335 | E11: 203609
A12: Direct Labor | B12: 7.33 | C12: 98222 | D12: 65237 | E12: 29759.8
A13: Overhead | B13: =B2*B12 -> 1.8325 | C13: 24555.5 | D13: 16309.25 | E13: =$B$1*$B13*E$5 -> 7439.95
A14: COGS Subtotal | C14: =SUM(C11:C13) -> 794787.5 | D14: =SUM(D11:D13) -> 527881.25 | E14: =SUM(E11:E13) -> 240808.75
A16: Selling Expense | B16: 5 | C16: =$B$1*$B16*C$5 -> 67000 | D16: =$B$1*$B16*D$5 -> 44500 | E16: =$B$1*$B16*E$5 -> 20300
A18: Projected Earnings | C18: =C8-SUM(C14,C16) -> 478212.5 | D18: =D8-SUM(D14,D16) -> 428868.75 | E18: =E8-SUM(E14,E16) -> 246391.25

Sheet P77-79 Qrt (1)
A1: Number of Shoes Per Pair | B1: 2 | C1: TZEdge 1st Quarter Budget Textured Leather Option
A2: Overhead % of Labor | B2: 0.35
C4: Low Priced | D4: High Priced
A5: Sales Volume: | C5: 660 | D5: 225
A6: Selling Price Per Pair: | C6: 225 | D6: 275
A7: Item | B7: Costs per Shoe | C7: Low Priced Total | D7: High Priced Total
A8: Revenue | C8: =C5*C6 -> 148500 | D8: =D5*D6 -> 61875
A10: Cost of Goods Sold:
A11: Materials | B11: 74.07 | C11: =$B$1*$B11*C$5 -> 97772.4 | D11: 33331.5
A12: Direct Labor | B12: 4.75 | C12: 6270 | D12: 2137.5
A13: Overhead | B13: =B12*B2 -> 1.6625 | C13: 2194.5 | D13: =$B$1*$B13*D$5 -> 748.125
A14: COGS Subtotal | C14: =SUM(C11:C13) -> 106236.9 | D14: =SUM(D11:D13) -> 36217.125
A16: Selling Expense | B16: 5 | C16: 6600 | D16: =$B$1*$B16*D$5 -> 2250
A18: Projected Earnings | C18: =C8-SUM(C14,C16) -> 35663.1 | D18: =D8-SUM(D14,D16) -> 23407.875

Sheet P77-79 Qrt (2)
A1: Number of Shoes Per Pair | B1: 2 | C1: TZEdge 2nd Quarter Budget Textured Leather Option
A2: Overhead % of Labor | B2: 0.35
C4: Low Priced | D4: High Priced
A5: Sales Volume: | C5: 800 | D5: 289
A6: Selling Price Per Pair: | C6: 225 | D6: 275
A7: Item | B7: Costs per Shoe | C7: Low Priced Total | D7: High Priced Total
A8: Revenue | C8: =C5*C6 -> 180000 | D8: =D5*D6 -> 79475
A10: Cost of Goods Sold:
A11: Materials | B11: 74.07 | C11: =$B$1*$B11*C$5 -> 118512 | D11: 42812.46
A12: Direct Labor | B12: 4.75 | C12: 7600 | D12: 2745.5
A13: Overhead | B13: =B12*B2 -> 1.6625 | C13: 2660 | D13: 960.925
A14: COGS Subtotal | C14: =SUM(C11:C13) -> 128772 | D14: =SUM(D11:D13) -> 46518.885
A16: Selling Expense | B16: 5 | C16: =$B$1*$B16*C$5 -> 8000 | D16: =$B$1*$B16*D$5 -> 2890
A18: Projected Earnings | C18: =C8-SUM(C14,C16) -> 43228 | D18: =D8-SUM(D14,D16) -> 30066.115

Sheet P77-79 Qrt (3)
A1: Number of Shoes Per Pair | B1: 2 | C1: TZEdge 3rd Quarter Budget Textured Leather Option
A2: Overhead % of Labor | B2: 0.35
C4: Low Priced | D4: High Priced
A5: Sales Volume: | C5: 1050 | D5: 335
A6: Selling Price Per Pair: | C6: 225 | D6: 275
A7: Item | B7: Costs per Shoe | C7: Low Priced Total | D7: High Priced Total
A8: Revenue | C8: =C5*C6 -> 236250 | D8: =D5*D6 -> 92125
A10: Cost of Goods Sold:
A11: Materials | B11: 74.07 | C11: =$B$1*$B11*C$5 -> 155547 | D11: 49626.9
A12: Direct Labor | B12: 4.75 | C12: 9975 | D12: 3182.5
A13: Overhead | B13: =B12*B2 -> 1.6625 | C13: 3491.25 | D13: 1113.875
A14: COGS Subtotal | C14: =SUM(C11:C13) -> 169013.25 | D14: =SUM(D11:D13) -> 53923.275
A16: Selling Expense | B16: 5 | C16: =$B$1*$B16*C$5 -> 10500 | D16: =$B$1*$B16*D$5 -> 3350
A18: Projected Earnings | C18: =C8-SUM(C14,C16) -> 56736.75 | D18: =D8-SUM(D14,D16) -> 34851.725

Sheet P77-79 Qrt (4)
A1: Number of Shoes Per Pair | B1: 2 | C1: TZEdge 4th Quarter Budget Textured Leather Option
A2: Overhead % of Labor | B2: 0.35
C4: Low Priced | D4: High Priced
A5: Sales Volume: | C5: 1200 | D5: 350
A6: Selling Price Per Pair: | C6: 225 | D6: 275
A7: Item | B7: Costs per Shoe | C7: Low Priced Total | D7: High Priced Total
A8: Revenue | C8: =C5*C6 -> 270000 | D8: =D5*D6 -> 96250
A10: Cost of Goods Sold:
A11: Materials | B11: 74.07 | C11: =$B$1*$B11*C$5 -> 177768 | D11: 51849
A12: Direct Labor | B12: 4.75 | C12: 11400 | D12: 3325
A13: Overhead | B13: =B12*B2 -> 1.6625 | C13: 3990 | D13: 1163.75
A14: COGS Subtotal | C14: =SUM(C11:C13) -> 193158 | D14: =SUM(D11:D13) -> 56337.75
A16: Selling Expense | B16: 5 | C16: =$B$1*$B16*C$5 -> 12000 | D16: =$B$1*$B16*D$5 -> 3500
A18: Projected Earnings | C18: =C8-SUM(C14,C16) -> 64842 | D18: =D8-SUM(D14,D16) -> 36412.25

Sheet P77-79 Summary
A1: Number of Shoes Per Pair | B1: 2 | C1: TZEdge Yearly Quarter Budget Textured Leather Option
A2: Overhead % of Labor | B2: 0.35
C4: Low Priced | D4: High Priced
A5: Sales Volume: | C5: =SUM('P77-79 Qrt (1):P77-79 Qrt (4)'!C5) -> 3710 | D5: =SUM('P77-79 Qrt (1):P77-79 Qrt (4)'!D5) -> 1199
A6: Selling Price Per Pair: | C6: 225 | D6: 275
A7: Item | B7: Costs per Shoe | C7: Low Priced Total | D7: High Priced Total
A8: Revenue | C8: =C5*C6 -> 834750 | D8: =D5*D6 -> 329725
A10: Cost of Goods Sold:
A11: Materials | B11: 74.07 | C11: =$B$1*$B11*C$5 -> 549599.4 | D11: 177619.86
A12: Direct Labor | B12: 4.75 | C12: 35245 | D12: 11390.5
A13: Overhead | B13: =B12*B2 -> 1.6625 | C13: 12335.75 | D13: 3986.675
A14: COGS Subtotal | C14: =SUM(C11:C13) -> 597180.15 | D14: =SUM(D11:D13) -> 192997.035
A16: Selling Expense | B16: 5 | C16: =$B$1*$B16*C$5 -> 37100 | D16: =$B$1*$B16*D$5 -> 11990
A18: Projected Earnings | C18: =C8-SUM(C14,C16) -> 200469.85 | D18: =D8-SUM(D14,D16) -> 124737.965
A20: I recommend the low priced high volume because the profits are higher, (all else equal)

Sheet P82-83
A1: Computer Purchase Analysis
B2: Dell | C2: HP | D2: Lenovo
A3: GHz | B3: 2.13 | C3: 2.4 | D3: 2.13
A4: RAM | B4: 1 | C4: 1 | D4: 2.5
A5: Hard drive | B5: 250 | C5: 200 | D5: 250
A6: Keyboard | B6: Included | C6: Included | D6: Included
A7: Computer: | B7: 1067 | C7: 949 | D7: 1724
A8: RAM upgrade | B8: 130 | C8: 120 | D8: Included
A9: Hard drive upgrade | B9: 220 | C9: 90 | D9: Included
A10: Optical Mouse | B10: 10 | C10: 40 | D10: Included
A11: Video Card | B11: 100 | C11: 100 | D11: Included
A12: Wireless Router or LAN | B12: 82 | C12: 30 | D12: Included
A13: CD-RW | B13: 40 | C13: Included | D13: Included
A14: Upgrade to Windows Vista | B14: 99 | C14: 60 | D14: Included
A15: Flat Panel Monitor | B15: 190 | C15: 130 | D15: 329
A16: Shipping & Handling | B16: 75 | C16: 25 | D16: Included
A17: Warranty | B17: 95 | C17: 127.95
A18: Total cost of 1 system | B18: =SUM(B7:B17) -> 2108 | C18: 1671.95 | D18: =SUM(D7:D17) -> 2053
A20: Totals After Discounts
A21: Cost per Machine | B21: =(1-B25)*(B18-B16)+B16 -> 1904.7 | C21: =C18-C26 -> 1656.95 | D21: =D18*(1-D27) -> 1642.4
A22: Cost of 30 Machines | B22: =B21*$B28 -> 57141 | C22: =C21*$B28 -> 49708.5 | D22: =D21*$B28 -> 49272
A24: Assumptions
A25: Dell Discount on all but shipping | B25: 0.1
A26: HP discount per machine | C26: 15
A27: Gateway price reduction and Free warrenty (1year) | D27: 0.2
A28: Number of Machines Purchased | B28: 30

Sheet P84-85
A1: Goal of homework: Help employee to select the most appropriate position based on a number of criteria
A2: Criteria 1 | B2: Amount of disposable income
A3: Criteria 2
A4: Criteria 3
A6: Assumptions
A7: NY apartment cost | B7: 2500
A8: NY job won't require car | B8: 0
A9: Increase for adjusted Salary after first Year | B9: 0.1
B15: Position | C15: Location | D15: Annual Salary | E15: Cost of Living Multiplier | F15: Monthly Car Payment | G15: Adjusted Salary | H15: Bonus | I15: Total 2yr. Financial Package
B16: Product Manager | C16: New York | D16: 39750 | E16: 1.35 | F16: 0 | G16: =IF(E16=0,0,D16/E16-F16*12) -> 29444.44444 | H16: 2500 | I16: =G16+G16*(1+B$9)+H16 -> 64333.33333
B17: Networking Specialist | C17: Chicago | D17: 42300 | E17: 1.2 | F17: 275 | G17: =IF(E17=0,0,D17/E17-F17*12) -> 31950 | I17: =G17+G17*(1+B$9)+H17 -> 67095
B18: Senior Consultant | C18: New York | D18: 64000 | E18: 1.35 | F18: 0 | G18: =IF(E18=0,0,D18/E18-F18*12) -> 47407.40741 | H18: 5000 | I18: =G18+G18*(1+B$9)+H18 -> 104555.5556
B19: Systems Analyst | C19: Indianapolis | D19: 49900 | E19: 0.85 | F19: 275 | G19: =IF(E19=0,0,D19/E19-F19*12) -> 55405.88235 | H19: 5000 | I19: =G19+G19*(1+B$9)+H19 -> 121352.3529
F21: Average: | G21: =AVERAGE(salaries) -> 41051.93355
F22: Low Offer | G22: =MIN(salaries) -> 29444.44444
F23: High Offer | G23: =MAX(salaries) -> 55405.88235
F24: # positions w/bonus | H24: =COUNT(H16:H19) -> 3

Sheet P85-87 1st Half
B1: Jan -June Sales Summary - Actual
A3: Model | B3: Sales Volume | C3: Mfg. Cost per Vehicle | D3: Total Cost | E3: Markup Percentage | F3: Total Sales to Dealers | G3: % of total Volume
A4: XP207 | B4: 80 | C4: 37881 | D4: =B4*C4 -> 3030480 | E4: 0.25 | F4: =D4*(1+E4) -> 3788100 | G4: =B4/B$29 -> 0.0007272198386
A5: XP212 | B5: 187 | C5: 37296 | D5: =B5*C5 -> 6974352 | E5: 0.25 | F5: 8717940 | G5: 0.001699876373
A6: XP208 | B6: 654 | C6: 35301 | D6: 23086854 | E6: 0.25 | F6: 28858567.5 | G6: 0.00594502218
A7: XP217 | B7: 774 | C7: 33164 | D7: 25668936 | E7: 0.23 | F7: 31572791.28 | G7: 0.007035851938
A8: XP220 | B8: 1475 | C8: 32737 | D8: 48287075 | E8: 0.23 | F8: 59393102.25 | G8: 0.01340811577
A9: XP219 | B9: 2703 | C9: 31363 | D9: 84774189 | E9: 0.23 | F9: 104272252.5 | G9: 0.0245709403
A10: XP201 | B10: 2841 | C10: 30908 | D10: 87809628 | E10: 0.23 | F10: 108005842.4 | G10: 0.02582539452
A11: XP209 | B11: 5539 | C11: 30374 | D11: 168241586 | E11: 0.23 | F11: 206937150.8 | G11: 0.05035088357
A12: XP204 | C12: 29451 | E12: 0.23 | G12: 0
A13: XP215 | B13: 4498 | C13: 28864 | D13: 129830272 | E13: 0.2 | F13: 155796326.4 | G13: 0.04088793542
A14: XP210 | B14: 4896 | C14: 28199 | D14: 138062304 | E14: 0.2 | F14: 165674764.8 | G14: 0.04450585412
A15: XP211 | C15: 28180 | E15: 0.2 | G15: 0
A16: XP216 | B16: 5310 | C16: 27691 | D16: 147039210 | E16: 0.2 | F16: 176447052 | G16: 0.04826921678
A17: XP214 | B17: 5399 | C17: 26436 | D17: 142727964 | E17: 0.2 | F17: 171273556.8 | G17: 0.04907824885
A18: XP224 | B18: 5751 | C18: 25157 | D18: 144677907 | E18: 0.2 | F18: 173613488.4 | G18: 0.05227801614
A19: XP218 | B19: 5875 | C19: 20264 | D19: 119051000 | E19: 0.2 | F19: 142861200 | G19: 0.05340520689
A20: XP223 | B20: 12032 | C20: 18679 | D20: =B20*C20 -> 224745728 | E20: 0.2 | F20: 269694873.6 | G20: 0.1093738637
A21: XP213 | B21: 6404 | C21: 18286 | D21: 117103544 | E21: 0.15 | F21: 134669075.6 | G21: 0.05821394808
A22: XP206 | B22: 6468 | C22: 17117 | D22: 110712756 | E22: 0.15 | F22: 127319669.4 | G22: 0.05879572395
A23: XP202 | B23: 9323 | C23: 16359 | D23: 152514957 | E23: 0.15 | F23: 175392200.5 | G23: 0.08474838194
A24: XP205 | B24: 7206 | C24: 15129 | D24: 109019574 | E24: 0.1 | F24: 119921531.4 | G24: 0.06550432696
A25: XP222 | B25: 7428 | C25: 14906 | D25: 110721768 | E25: 0.1 | F25: 121793944.8 | G25: 0.06752236201
A26: XP221 | B26: 7458 | C26: 14363 | D26: 107119254 | E26: 0.1 | F26: =D26*(1+E26) -> 117831179.4 | G26: 0.06779506945
A27: XP203 | B27: 7707 | C27: 13757 | D27: 106025199 | E27: 0.1 | F27: 116627718.9 | G27: 0.0700585412
A28: Totals
A29: total | B29: =SUM(B4:B27) -> 110008 | D29: =SUM(D4:D27) -> 2307224537 | E29: Mean | F29: =SUM(F4:F27) -> 2720462329
A30: average | B30: =AVERAGE(B4:B27) -> 5000.363636 | C30: =AVERAGE(C4:C27) -> 25494.25 | D30: =AVERAGE(D4:D27) -> 104873842.6 | E30: =AVERAGE(E4:E27) -> 0.1908333333 | F30: =AVERAGE(F4:F27) -> 123657378.6 | G30: =GEOMEAN(G4:G27+1)-1 -> 0.04125281752
A31: highest | B31: =MAX(sv) -> 12032 | F31: =MAX(F4:F27) -> 269694873.6
A32: lowest | B32: =MIN(sv) -> 80
A34: # models available for sale | D34: =COUNTA(A4:A27) -> 24

Sheet P85-87 2nd Half
B1: July -Dec Sales Summary - Projected
A3: Model | B3: Sales Volume | C3: Mfg. Cost per Vehicle | D3: Total Cost | E3: Markup Percentage | F3: Total Sales to Dealers | G3: % of total Volume
A4: XP207 | B4: 136 | C4: 37881 | D4: =IF(B4="","",B4*C4) -> 5151816 | E4: 0.25 | F4: =D4*(1+E4) -> 6439770 | G4: =B4/B$29 -> 0.001313831945
A5: XP212 | C5: 37296 | E5: 0.25 | G5: 0
A6: XP208 | B6: 886 | C6: 35301 | D6: 31276686 | E6: 0.25 | F6: 39095857.5 | G6: 0.008559228703
A7: XP217 | B7: 779 | C7: 33164 | D7: 25834756 | E7: 0.23 | F7: 31776749.88 | G7: 0.007525552099
A8: XP220 | B8: 1388 | C8: 32737 | D8: 45438956 | E8: 0.23 | F8: 55889915.88 | G8: 0.01340881427
A9: XP219 | B9: 2682 | C9: 31363 | D9: 84115566 | E9: 0.23 | F9: 103462146.2 | G9: 0.02590953881
A10: XP201 | B10: 2834 | C10: 30908 | D10: 87593272 | E10: 0.23 | F10: 107739724.6 | G10: 0.02737793922
A11: XP209 | B11: 5518 | C11: 30374 | D11: 167603732 | E11: 0.23 | F11: 206152590.4 | G11: 0.05330679908
A12: XP204 | B12: 7 | C12: 29451 | D12: 206157 | E12: 0.23 | F12: 253573.11 | G12: 6.762370307e-05
A13: XP215 | B13: 4508 | C13: 28864 | D13: 130118912 | E13: 0.2 | F13: 156142694.4 | G13: 0.04354966478
A14: XP210 | B14: 3200 | C14: 28199 | D14: 90236800 | E14: 0.2 | F14: 108284160 | G14: 0.03091369283
A15: XP211 | B15: 14 | C15: 28180 | D15: 394520 | E15: 0.2 | F15: 473424 | G15: 0.0001352474061
A16: XP216 | B16: 5316 | C16: 27691 | D16: 147205356 | E16: 0.2 | F16: 176646427.2 | G16: 0.05135537222
A17: XP214 | B17: 5383 | C17: 26436 | D17: 142304988 | E17: 0.2 | F17: 170765985.6 | G17: 0.05200262766
A18: XP224 | B18: 5736 | C18: 25157 | D18: 144300552 | E18: 0.2 | F18: 173160662.4 | G18: 0.0554127944
A19: XP218 | B19: 5899 | C19: 20264 | D19: 119537336 | E19: 0.2 | F19: 143444803.2 | G19: 0.05698746063
A20: XP223 | B20: 8993 | C20: 18679 | D20: 167980247 | E20: 0.2 | F20: 201576296.4 | G20: 0.08687713739
A21: XP213 | B21: 6399 | C21: 18286 | D21: 117012114 | E21: 0.15 | F21: 134563931.1 | G21: 0.06181772514
A22: XP206 | B22: 6470 | C22: 17117 | D22: 110746990 | E22: 0.15 | F22: 127359038.5 | G22: 0.0625036227
A23: XP202 | B23: 9324 | C23: 16359 | D23: 152531316 | E23: 0.15 | F23: 175411013.4 | G23: 0.09007477249
A24: XP205 | B24: 5432 | C24: 15129 | D24: 82180728 | E24: 0.1 | F24: 90398800.8 | G24: 0.05247599359
A25: XP222 | B25: 7435 | C25: 14906 | D25: 110826110 | E25: 0.1 | F25: 121908721 | G25: 0.07182603319
A26: XP221 | B26: 7482 | C26: 14363 | D26: 107463966 | E26: 0.1 | F26: 118210362.6 | G26: 0.07228007806
A27: XP203 | B27: 7693 | C27: 13757 | D27: 105832601 | E27: 0.1 | F27: 116415861.1 | G27: 0.07431844968
A28: Totals
A29: total | B29: =SUM(B4:B27) -> 103514 | D29: =SUM(D4:D27) -> 2175893477 | E29: Mean | F29: =SUM(F4:F27) -> 2565572509
A30: average | B30: =AVERAGE(B4:B27) -> 4500.608696 | C30: =AVERAGE(C4:C27) -> 25494.25 | D30: =AVERAGE(D4:D27) -> 94604064.22 | E30: =AVERAGE(E4:E27) -> 0.1908333333 | F30: =AVERAGE(F4:F27) -> 111546630.8 | G30: =GEOMEAN(G4:G27+1)-1 -> 0.04127629399
A31: highest | B31: =MAX(sv) -> 9324 | F31: =MAX(F4:F27) -> 206152590.4
A32: lowest | B32: =MIN(sv) -> 7
A34: # models available for sale | D34: =COUNTA(A4:A27) -> 24

Sheet P85-87 Summary
A1: Model | B1: Annual Volume | C1: Jan-Jun Sales to Dealers | D1: Jul-Dec Sales to Dealers | E1: Total Sales to Dealers | F1: % Total Sales to Dealers Jan-Jun | G1: % Total Sales to Dealers Jul-Dec | H1: %Total Sales to Dealers Annual
A2: =IF('P85-87 1st Half'!A4='P85-87 2nd Half'!A4,'P85-87 1st Half'!A4,"Labels Not Equal") -> XP207 | B2: =SUM('P85-87 1st Half:P85-87 2nd Half'!B4) -> 216 | C2: ='P85-87 1st Half'!F4 -> 3788100 | D2: ='P85-87 2nd Half'!F4 -> 6439770 | E2: =SUM(C2:D2) -> 10227870 | F2: =C2/C$26 -> 0.001392447144 | G2: 0.00251007133 | H2: 0.001934885091
A3: =IF('P85-87 1st Half'!A5='P85-87 2nd Half'!A5,'P85-87 1st Half'!A5,"Labels Not Equal") -> XP212 | B3: =SUM('P85-87 1st Half:P85-87 2nd Half'!B5) -> 187 | C3: ='P85-87 1st Half'!F5 -> 8717940 | D3: ='P85-87 2nd Half'!F5 -> 0 | E3: 8717940 | F3: 0.003204580305 | G3: 0 | H3: 0.001649239982
A4: =IF('P85-87 1st Half'!A6='P85-87 2nd Half'!A6,'P85-87 1st Half'!A6,"Labels Not Equal") -> XP208 | B4: =SUM('P85-87 1st Half:P85-87 2nd Half'!B6) -> 1540 | C4: ='P85-87 1st Half'!F6 -> 28858567.5 | D4: ='P85-87 2nd Half'!F6 -> 39095857.5 | E4: 67954425 | F4: 0.01060796439 | G4: 0.01523864843 | H4: 0.01285546295
A5: =IF('P85-87 1st Half'!A7='P85-87 2nd Half'!A7,'P85-87 1st Half'!A7,"Labels Not Equal") -> XP217 | B5: =SUM('P85-87 1st Half:P85-87 2nd Half'!B7) -> 1553 | C5: ='P85-87 1st Half'!F7 -> 31572791.28 | D5: ='P85-87 2nd Half'!F7 -> 31776749.88 | E5: 63349541.16 | F5: 0.01160567119 | G5: 0.01238583192 | H5: 0.01198432154
A6: =IF('P85-87 1st Half'!A8='P85-87 2nd Half'!A8,'P85-87 1st Half'!A8,"Labels Not Equal") -> XP220 | B6: =SUM('P85-87 1st Half:P85-87 2nd Half'!B8) -> 2863 | C6: ='P85-87 1st Half'!F8 -> 59393102.25 | D6: ='P85-87 2nd Half'!F8 -> 55889915.88 | E6: 115283018.1 | F6: 0.02183198849 | G6: 0.02178457856 | H6: 0.02180897812
A7: =IF('P85-87 1st Half'!A9='P85-87 2nd Half'!A9,'P85-87 1st Half'!A9,"Labels Not Equal") -> XP219 | B7: =SUM('P85-87 1st Half:P85-87 2nd Half'!B9) -> 5385 | C7: ='P85-87 1st Half'!F9 -> 104272252.5 | D7: ='P85-87 2nd Half'!F9 -> 103462146.2 | E7: 207734398.6 | F7: 0.03832887203 | G7: 0.04032711834 | H7: 0.03929871918
A8: =IF('P85-87 1st Half'!A10='P85-87 2nd Half'!A10,'P85-87 1st Half'!A10,"Labels Not Equal") -> XP201 | B8: =SUM('P85-87 1st Half:P85-87 2nd Half'!B10) -> 5675 | C8: ='P85-87 1st Half'!F10 -> 108005842.4 | D8: ='P85-87 2nd Half'!F10 -> 107739724.6 | E8: 215745567 | F8: 0.03970128213 | G8: 0.04199441808 | H8: 0.04081425371
A9: =IF('P85-87 1st Half'!A11='P85-87 2nd Half'!A11,'P85-87 1st Half'!A11,"Labels Not Equal") -> XP209 | B9: =SUM('P85-87 1st Half:P85-87 2nd Half'!B11) -> 11057 | C9: ='P85-87 1st Half'!F11 -> 206937150.8 | D9: ='P85-87 2nd Half'!F11 -> 206152590.4 | E9: 413089741.1 | F9: 0.07606690546 | G9: 0.08035344533 | H9: 0.07814737394
A10: =IF('P85-87 1st Half'!A12='P85-87 2nd Half'!A12,'P85-87 1st Half'!A12,"Labels Not Equal") -> XP204 | B10: =SUM('P85-87 1st Half:P85-87 2nd Half'!B12) -> 7 | C10: ='P85-87 1st Half'!F12 -> 0 | D10: ='P85-87 2nd Half'!F12 -> 253573.11 | E10: 253573.11 | F10: 0 | G10: 9.883685185e-05 | H10: 4.797038192e-05
A11: =IF('P85-87 1st Half'!A13='P85-87 2nd Half'!A13,'P85-87 1st Half'!A13,"Labels Not Equal") -> XP215 | B11: =SUM('P85-87 1st Half:P85-87 2nd Half'!B13) -> 9006 | C11: ='P85-87 1st Half'!F13 -> 155796326.4 | D11: ='P85-87 2nd Half'!F13 -> 156142694.4 | E11: 311939020.8 | F11: 0.05726832706 | G11: 0.06086076065 | H11: 0.05901191164
A12: =IF('P85-87 1st Half'!A14='P85-87 2nd Half'!A14,'P85-87 1st Half'!A14,"Labels Not Equal") -> XP210 | B12: =SUM('P85-87 1st Half:P85-87 2nd Half'!B14) -> 8096 | C12: ='P85-87 1st Half'!F14 -> 165674764.8 | D12: ='P85-87 2nd Half'!F14 -> 108284160 | E12: 273958924.8 | F12: 0.06089948868 | G12: 0.04220662625 | H12: 0.05182692381
A13: =IF('P85-87 1st Half'!A15='P85-87 2nd Half'!A15,'P85-87 1st Half'!A15,"Labels Not Equal") -> XP211 | B13: =SUM('P85-87 1st Half:P85-87 2nd Half'!B15) -> 14 | C13: ='P85-87 1st Half'!F15 -> 0 | D13: ='P85-87 2nd Half'!F15 -> 473424 | E13: 473424 | F13: 0 | G13: 0.0001845295731 | H13: 8.956127126e-05
A14: =IF('P85-87 1st Half'!A16='P85-87 2nd Half'!A16,'P85-87 1st Half'!A16,"Labels Not Equal") -> XP216 | B14: =SUM('P85-87 1st Half:P85-87 2nd Half'!B16) -> 10626 | C14: ='P85-87 1st Half'!F16 -> 176447052 | D14: ='P85-87 2nd Half'!F16 -> 176646427.2 | E14: 353093479.2 | F14: 0.06485921534 | G14: 0.06885263487 | H14: 0.06679741811
A15: =IF('P85-87 1st Half'!A17='P85-87 2nd Half'!A17,'P85-87 1st Half'!A17,"Labels Not Equal") -> XP214 | B15: =SUM('P85-87 1st Half:P85-87 2nd Half'!B17) -> 10782 | C15: ='P85-87 1st Half'!F17 -> 171273556.8 | D15: ='P85-87 2nd Half'!F17 -> 170765985.6 | E15: 342039542.4 | F15: 0.06295751828 | G15: 0.06656057663 | H15: 0.06470625959
A16: =IF('P85-87 1st Half'!A18='P85-87 2nd Half'!A18,'P85-87 1st Half'!A18,"Labels Not Equal") -> XP224 | B16: =SUM('P85-87 1st Half:P85-87 2nd Half'!B18) -> 11487 | C16: ='P85-87 1st Half'!F18 -> 173613488.4 | D16: ='P85-87 2nd Half'!F18 -> 173160662.4 | E16: 346774150.8 | F16: 0.06381764105 | G16: 0.06749396549 | H16: 0.06560194199
A17: =IF('P85-87 1st Half'!A19='P85-87 2nd Half'!A19,'P85-87 1st Half'!A19,"Labels Not Equal") -> XP218 | B17: =SUM('P85-87 1st Half:P85-87 2nd Half'!B19) -> 11774 | C17: ='P85-87 1st Half'!F19 -> 142861200 | D17: ='P85-87 2nd Half'!F19 -> 143444803.2 | E17: 286306003.2 | F17: 0.05251357407 | G17: 0.05591142043 | H17: 0.05416271591
A18: =IF('P85-87 1st Half'!A20='P85-87 2nd Half'!A20,'P85-87 1st Half'!A20,"Labels Not Equal") -> XP223 | B18: =SUM('P85-87 1st Half:P85-87 2nd Half'!B20) -> 21025 | C18: ='P85-87 1st Half'!F20 -> 269694873.6 | D18: ='P85-87 2nd Half'!F20 -> 201576296.4 | E18: 471271170 | F18: 0.09913567659 | G18: 0.07856971326 | H18: 0.08915400379
A19: =IF('P85-87 1st Half'!A21='P85-87 2nd Half'!A21,'P85-87 1st Half'!A21,"Labels Not Equal") -> XP213 | B19: =SUM('P85-87 1st Half:P85-87 2nd Half'!B21) -> 12803 | C19: ='P85-87 1st Half'!F21 -> 134669075.6 | D19: ='P85-87 2nd Half'!F21 -> 134563931.1 | E19: 269233006.7 | F19: 0.04950227547 | G19: 0.05244986475 | H19: 0.05093288541
A20: =IF('P85-87 1st Half'!A22='P85-87 2nd Half'!A22,'P85-87 1st Half'!A22,"Labels Not Equal") -> XP206 | B20: =SUM('P85-87 1st Half:P85-87 2nd Half'!B22) -> 12938 | C20: ='P85-87 1st Half'!F22 -> 127319669.4 | D20: ='P85-87 2nd Half'!F22 -> 127359038.5 | E20: 254678707.9 | F20: 0.04680074708 | G20: 0.04964156657 | H20: 0.0481795364
A21: =IF('P85-87 1st Half'!A23='P85-87 2nd Half'!A23,'P85-87 1st Half'!A23,"Labels Not Equal") -> XP202 | B21: =SUM('P85-87 1st Half:P85-87 2nd Half'!B23) -> 18647 | C21: ='P85-87 1st Half'!F23 -> 175392200.5 | D21: ='P85-87 2nd Half'!F23 -> 175411013.4 | E21: 350803213.9 | F21: 0.06447146821 | G21: 0.06837109954 | H21: 0.06636415096
A22: =IF('P85-87 1st Half'!A24='P85-87 2nd Half'!A24,'P85-87 1st Half'!A24,"Labels Not Equal") -> XP205 | B22: =SUM('P85-87 1st Half:P85-87 2nd Half'!B24) -> 12638 | C22: ='P85-87 1st Half'!F24 -> 119921531.4 | D22: ='P85-87 2nd Half'!F24 -> 90398800.8 | E22: 210320332.2 | F22: 0.04408130564 | G22: 0.03523533265 | H22: 0.03978792018
A23: =IF('P85-87 1st Half'!A25='P85-87 2nd Half'!A25,'P85-87 1st Half'!A25,"Labels Not Equal") -> XP222 | B23: =SUM('P85-87 1st Half:P85-87 2nd Half'!B25) -> 14863 | C23: ='P85-87 1st Half'!F25 -> 121793944.8 | D23: ='P85-87 2nd Half'!F25 -> 121908721 | E23: 243702665.8 | F23: 0.04476957593 | G23: 0.04751716062 | H23: 0.04610311382
A24: =IF('P85-87 1st Half'!A26='P85-87 2nd Half'!A26,'P85-87 1st Half'!A26,"Labels Not Equal") -> XP221 | B24: =SUM('P85-87 1st Half:P85-87 2nd Half'!B26) -> 14940 | C24: ='P85-87 1st Half'!F26 -> 117831179.4 | D24: ='P85-87 2nd Half'!F26 -> 118210362.6 | E24: 236041542 | F24: 0.04331292448 | G24: 0.04607562724 | H24: 0.04465379992
A25: =IF('P85-87 1st Half'!A27='P85-87 2nd Half'!A27,'P85-87 1st Half'!A27,"Labels Not Equal") -> XP203 | B25: =SUM('P85-87 1st Half:P85-87 2nd Half'!B27) -> 15400 | C25: ='P85-87 1st Half'!F27 -> 116627718.9 | D25: ='P85-87 2nd Half'!F27 -> 116415861.1 | E25: 233043580 | F25: 0.04287055096 | G25: 0.04537617264 | H25: 0.04408665231
A26: Totals | B26: =SUM(B2:B25) -> 213522 | C26: =SUM(C2:C25) -> 2720462329 | D26: =SUM(D2:D25) -> 2565572509 | E26: =SUM(E2:E25) -> 5286034838

Sheet Sheet3
